[Event "GrandPrix_29.05"]
[Site "Chess.com"]
[Date "2020.05.29"]
[Round "2"]
[White "LuckyLuka04"]
[Black "Bestromano"]
[Result "1-0"]
[WhiteElo "2237"]
[BlackElo "1691"]
[TimeControl "600+2"]
[EndTime "9:58:39 PDT"]
[Termination "LuckyLuka04 won by checkmate"]

1. d4 {[%clk 0:10:01.9]} 1... Nf6 {[%clk 0:10:00.6]} 2. Nf3 {[%clk 0:10:01.9]}
2... g6 {[%clk 0:10:01.1]} 3. c4 {[%clk 0:10:02.2]} 3... Bg7 {[%clk 0:10:01.9]}
4. Nc3 {[%clk 0:10:03.4]} 4... O-O {[%clk 0:10:02.1]} 5. Bf4 {[%clk 0:09:55.2]}
5... d6 {[%clk 0:09:56.2]} 6. e3 {[%clk 0:09:53]} 6... c5 {[%clk 0:09:53]} 7. d5
{[%clk 0:09:50]} 7... Na6 {[%clk 0:09:34.8]} 8. Be2 {[%clk 0:09:29.5]} 8... Nc7
{[%clk 0:09:28.8]} 9. h3 {[%clk 0:09:25.7]} 9... a6 {[%clk 0:09:30.1]} 10. a4
{[%clk 0:09:26.1]} 10... Rb8 {[%clk 0:09:30.7]} 11. O-O {[%clk 0:09:23]} 11...
Nd7 {[%clk 0:09:23]} 12. e4 {[%clk 0:09:13]} 12... Bxc3 {[%clk 0:08:16.4]} 13.
bxc3 {[%clk 0:09:11.9]} 13... b5 {[%clk 0:08:18.1]} 14. axb5 {[%clk 0:08:38.2]}
14... axb5 {[%clk 0:08:20]} 15. e5 {[%clk 0:07:47.8]} 15... Nb6 {[%clk
0:07:21.3]} 16. exd6 {[%clk 0:06:06.6]} 16... exd6 {[%clk 0:07:17.4]} 17. Bh6
{[%clk 0:06:02.5]} 17... Re8 {[%clk 0:07:16.7]} 18. cxb5 {[%clk 0:05:53.3]}
18... Ncxd5 {[%clk 0:06:53.3]} 19. Qd2 {[%clk 0:05:36.2]} 19... Qf6 {[%clk
0:06:01.5]} 20. c4 {[%clk 0:03:53.5]} 20... Nb4 {[%clk 0:05:46.3]} 21. Bg5
{[%clk 0:03:35.1]} 21... Qe6 {[%clk 0:04:14.7]} 22. Rfe1 {[%clk 0:03:33.2]}
22... Bb7 {[%clk 0:04:09.5]} 23. Bf4 {[%clk 0:03:14.8]} 23... Nxc4 {[%clk
0:03:56]} 24. Bxc4 {[%clk 0:02:49.7]} 24... Qxc4 {[%clk 0:03:57.9]} 25. Qxd6
{[%clk 0:01:33.4]} 25... Red8 {[%clk 0:03:27.2]} 26. Ne5 {[%clk 0:00:55.6]}
26... Qxf4 {[%clk 0:03:14.6]} 27. Qxc5 {[%clk 0:00:56.6]} 27... Rbc8 {[%clk
0:01:01]} 28. Qe7 {[%clk 0:00:43]} 28... Nc2 {[%clk 0:01:01.1]} 29. Qxb7 {[%clk
0:00:25.4]} 29... Nxa1 {[%clk 0:01:00.6]} 30. Nc6 {[%clk 0:00:26.9]} 30... Rb8
{[%clk 0:00:42]} 31. Nxb8 {[%clk 0:00:16.7]} 31... Rxb8 {[%clk 0:00:43.9]} 32.
Qd5 {[%clk 0:00:13.3]} 32... Nc2 {[%clk 0:00:40.5]} 33. Rd1 {[%clk 0:00:12.4]}
33... Nb4 {[%clk 0:00:38.9]} 34. Qc5 {[%clk 0:00:11.3]} 34... Na2 {[%clk
0:00:28.6]} 35. b6 {[%clk 0:00:07.5]} 35... Qa4 {[%clk 0:00:23.8]} 36. Rb1
{[%clk 0:00:07.3]} 36... Nc3 {[%clk 0:00:21.6]} 37. Qxc3 {[%clk 0:00:07.5]}
37... Qa6 {[%clk 0:00:21.7]} 38. Qc7 {[%clk 0:00:08.1]} 38... Rb7 {[%clk
0:00:13.4]} 39. Qc8+ {[%clk 0:00:08.6]} 39... Kg7 {[%clk 0:00:15]} 40. Qc3+
{[%clk 0:00:09.4]} 40... Kg8 {[%clk 0:00:15.9]} 41. Qd4 {[%clk 0:00:07]} 41...
Qa8 {[%clk 0:00:12.2]} 42. Rc1 {[%clk 0:00:05.6]} 42... Qb8 {[%clk 0:00:13.4]}
43. Rc6 {[%clk 0:00:06.7]} 43... Qe8 {[%clk 0:00:12]} 44. Qc3 {[%clk 0:00:07.6]}
44... Rb8 {[%clk 0:00:12]} 45. b7 {[%clk 0:00:08.7]} 45... Rxb7 {[%clk
0:00:05.8]} 46. Rc8 {[%clk 0:00:09.8]} 46... Re7 {[%clk 0:00:06.8]} 47. Rxe8+
{[%clk 0:00:10.4]} 47... Rxe8 {[%clk 0:00:08.7]} 48. Qf6 {[%clk 0:00:11.1]}
48... Re6 {[%clk 0:00:10.6]} 49. Qd8+ {[%clk 0:00:11.6]} 49... Kg7 {[%clk
0:00:12.1]} 50. h4 {[%clk 0:00:12.4]} 50... h6 {[%clk 0:00:13.6]} 51. g3 {[%clk
0:00:13.3]} 51... h5 {[%clk 0:00:15]} 52. Kg2 {[%clk 0:00:14.4]} 52... Re4
{[%clk 0:00:15]} 53. Qd5 {[%clk 0:00:14.5]} 53... Re6 {[%clk 0:00:16.1]} 54.
Qd4+ {[%clk 0:00:15.1]} 54... Kg8 {[%clk 0:00:16.9]} 55. f3 {[%clk 0:00:09.2]}
55... Re8 {[%clk 0:00:17.4]} 56. g4 {[%clk 0:00:07.7]} 56... hxg4 {[%clk
0:00:18.7]} 57. Qxg4 {[%clk 0:00:08.1]} 57... Re6 {[%clk 0:00:20.6]} 58. h5
{[%clk 0:00:09]} 58... Kg7 {[%clk 0:00:21.9]} 59. Qg5 {[%clk 0:00:08.4]} 59...
Re8 {[%clk 0:00:19.1]} 60. f4 {[%clk 0:00:07.1]} 60... Rh8 {[%clk 0:00:13.9]}
61. hxg6 {[%clk 0:00:08.2]} 61... fxg6 {[%clk 0:00:14.9]} 62. Qe7+ {[%clk
0:00:06.2]} 62... Kh6 {[%clk 0:00:15.8]} 63. Kg3 {[%clk 0:00:05.9]} 63... Rg8
{[%clk 0:00:15.9]} 64. Kg4 {[%clk 0:00:06.3]} 64... Rh8 {[%clk 0:00:16.2]} 65.
Qf7 {[%clk 0:00:06.2]} 65... Rd8 {[%clk 0:00:14.2]} 66. Qf6 {[%clk 0:00:06.7]}
66... Rh8 {[%clk 0:00:15.5]} 67. Qxh8# {[%clk 0:00:07.1]} 1-0

[Event "GrandPrix_29.05"]
[Site "Chess.com"]
[Date "2020.05.29"]
[Round "2"]
[White "Kiril1965"]
[Black "Igor_Lysyj"]
[Result "1-0"]
[WhiteElo "2256"]
[BlackElo "2160"]
[TimeControl "600+2"]
[EndTime "9:58:40 PDT"]
[Termination "Kiril1965 won by resignation"]

1. d4 {[%clk 0:10:00.5]} 1... Nf6 {[%clk 0:10:00.4]} 2. Nf3 {[%clk 0:09:56.3]}
2... d5 {[%clk 0:10:00.5]} 3. c4 {[%clk 0:09:54.5]} 3... e6 {[%clk 0:10:01.1]}
4. Nc3 {[%clk 0:09:52.5]} 4... dxc4 {[%clk 0:09:57.9]} 5. e3 {[%clk 0:09:37.8]}
5... a6 {[%clk 0:09:56.3]} 6. a4 {[%clk 0:09:31.6]} 6... c5 {[%clk 0:09:56.1]}
7. Bxc4 {[%clk 0:09:31.3]} 7... Nc6 {[%clk 0:09:54.6]} 8. O-O {[%clk 0:09:29]}
8... Be7 {[%clk 0:09:50.7]} 9. dxc5 {[%clk 0:09:28.1]} 9... O-O {[%clk
0:09:44.6]} 10. Qe2 {[%clk 0:08:37.1]} 10... Qc7 {[%clk 0:09:39.3]} 11. Bd3
{[%clk 0:08:14.3]} 11... Bxc5 {[%clk 0:09:17.5]} 12. Ne4 {[%clk 0:08:02.3]}
12... Be7 {[%clk 0:08:19.7]} 13. Bd2 {[%clk 0:07:04.4]} 13... Nd5 {[%clk
0:08:00.8]} 14. Rfc1 {[%clk 0:07:01.3]} 14... Bd7 {[%clk 0:07:41.2]} 15. Nc5
{[%clk 0:06:36]} 15... Be8 {[%clk 0:07:40.8]} 16. Rab1 {[%clk 0:06:19.4]} 16...
Qb6 {[%clk 0:07:12.4]} 17. e4 {[%clk 0:05:33.8]} 17... Ndb4 {[%clk 0:06:58.7]}
18. Be3 {[%clk 0:05:32.8]} 18... Nxd3 {[%clk 0:06:52.6]} 19. Qxd3 {[%clk
0:05:33]} 19... Qd8 {[%clk 0:05:40.9]} 20. Qe2 {[%clk 0:05:11.1]} 20... b6
{[%clk 0:05:23.5]} 21. Nd3 {[%clk 0:05:03.6]} 21... Qb8 {[%clk 0:05:00.9]} 22.
b4 {[%clk 0:05:01.8]} 22... Qb7 {[%clk 0:04:46.7]} 23. a5 {[%clk 0:04:42.7]}
23... bxa5 {[%clk 0:04:07.6]} 24. bxa5 {[%clk 0:04:36.9]} 24... Qd7 {[%clk
0:03:42.4]} 25. Bb6 {[%clk 0:04:24.3]} 25... f6 {[%clk 0:03:34.5]} 26. Rd1
{[%clk 0:03:33.1]} 26... Qc8 {[%clk 0:03:28.6]} 27. Rbc1 {[%clk 0:03:27.8]}
27... Qb7 {[%clk 0:02:27.9]} 28. Nc5 {[%clk 0:03:24.1]} 28... Bxc5 {[%clk
0:02:27.3]} 29. Rxc5 {[%clk 0:03:24.4]} 29... Bf7 {[%clk 0:01:55.7]} 30. Rd6
{[%clk 0:03:18]} 30... Rac8 {[%clk 0:01:38.8]} 31. h3 {[%clk 0:03:00.7]} 31...
e5 {[%clk 0:01:33.7]} 32. Qd2 {[%clk 0:02:45.3]} 32... Nb8 {[%clk 0:01:21.3]}
33. Rxc8 {[%clk 0:02:41.9]} 33... Qxc8 {[%clk 0:01:21.8]} 34. Kh2 {[%clk
0:02:37.3]} 34... Nc6 {[%clk 0:00:52.5]} 35. Nh4 {[%clk 0:02:29.9]} 35... Be6
{[%clk 0:00:49.1]} 36. Qc3 {[%clk 0:02:04.2]} 36... Ne7 {[%clk 0:00:37.3]} 37.
Qxc8 {[%clk 0:01:59.8]} 37... Bxc8 {[%clk 0:00:37.8]} 38. Bc5 {[%clk 0:01:55.3]}
38... Re8 {[%clk 0:00:35.1]} 39. Nf3 {[%clk 0:01:53.7]} 39... Ng6 {[%clk
0:00:31.6]} 40. Nd2 {[%clk 0:01:46.3]} 40... Kf7 {[%clk 0:00:25.9]} 41. Nc4
{[%clk 0:01:44.7]} 41... Be6 {[%clk 0:00:26.7]} 42. Nb6 {[%clk 0:01:42.6]} 42...
Rb8 {[%clk 0:00:26.2]} 43. Rc6 {[%clk 0:01:41.3]} 43... Rb7 {[%clk 0:00:26.5]}
44. g3 {[%clk 0:01:39.1]} 44... Ne7 {[%clk 0:00:24.8]} 45. Bxe7 {[%clk 0:01:23]}
45... Kxe7 {[%clk 0:00:25.9]} 46. Nd5+ {[%clk 0:01:08.8]} 46... Bxd5 {[%clk
0:00:26.5]} 47. exd5 {[%clk 0:01:09.7]} 47... Rd7 {[%clk 0:00:25.4]} 48. Rxa6
{[%clk 0:01:05.7]} 48... Rxd5 {[%clk 0:00:26.5]} 49. Ra7+ {[%clk 0:01:06.3]}
49... Kf8 {[%clk 0:00:27.1]} 50. a6 {[%clk 0:01:01.6]} 50... Ra5 {[%clk
0:00:27.6]} 51. g4 {[%clk 0:01:01.8]} 51... Ra3 {[%clk 0:00:23.4]} 52. h4 {[%clk
0:01:01.2]} 52... h6 {[%clk 0:00:22.6]} 53. h5 {[%clk 0:01:00.5]} 53... Kg8
{[%clk 0:00:22.1]} 54. Kg2 {[%clk 0:01:00.1]} 54... Ra4 {[%clk 0:00:21.2]} 55.
Kf3 {[%clk 0:00:59.7]} 55... Kh7 {[%clk 0:00:22]} 56. Kg3 {[%clk 0:00:56.9]}
56... Ra3+ {[%clk 0:00:22.6]} 57. Kg2 {[%clk 0:00:57.4]} 57... Ra4 {[%clk
0:00:23.6]} 58. f3 {[%clk 0:00:58.4]} 58... Ra2+ {[%clk 0:00:23.2]} 59. Kg3
{[%clk 0:00:58.9]} 59... Ra3 {[%clk 0:00:24.3]} 60. Kf2 {[%clk 0:00:59.5]} 60...
Ra1 {[%clk 0:00:23.5]} 61. Ke3 {[%clk 0:00:58.5]} 61... Ra4 {[%clk 0:00:24]} 62.
Ra8 {[%clk 0:00:57.5]} 62... Ra5 {[%clk 0:00:23.3]} 63. Ke4 {[%clk 0:00:58]}
63... Ra3 {[%clk 0:00:24.2]} 64. Kd5 {[%clk 0:00:47.3]} 64... Rxf3 {[%clk
0:00:24.7]} 65. Rb8 {[%clk 0:00:47.6]} 65... Ra3 {[%clk 0:00:24.6]} 66. Rb6
{[%clk 0:00:47.9]} 66... Ra4 {[%clk 0:00:21]} 67. Kc6 {[%clk 0:00:46.9]} 67...
e4 {[%clk 0:00:18.8]} 68. Kb7 {[%clk 0:00:45]} 68... e3 {[%clk 0:00:16.1]} 69.
a7 {[%clk 0:00:41.5]} 69... g6 {[%clk 0:00:15.6]} 70. Rxf6 {[%clk 0:00:39.8]}
70... gxh5 {[%clk 0:00:16.1]} 71. gxh5 {[%clk 0:00:40.6]} 1-0

[Event "GrandPrix_29.05"]
[Site "Chess.com"]
[Date "2020.05.29"]
[Round "2"]
[White "bratkoo"]
[Black "Hrant_ChessMood"]
[Result "0-1"]
[WhiteElo "2264"]
[BlackElo "2744"]
[TimeControl "600+2"]
[EndTime "9:58:42 PDT"]
[Termination "Hrant_ChessMood won by resignation"]

1. e4 {[%clk 0:10:01.9]} 1... c6 {[%clk 0:09:59]} 2. d4 {[%clk 0:10:02.4]} 2...
d5 {[%clk 0:10:00.4]} 3. Nc3 {[%clk 0:10:03.2]} 3... dxe4 {[%clk 0:10:01.4]} 4.
Nxe4 {[%clk 0:10:04.3]} 4... Nf6 {[%clk 0:10:03.1]} 5. Nxf6+ {[%clk 0:10:04.5]}
5... exf6 {[%clk 0:10:04.8]} 6. Nf3 {[%clk 0:10:05.5]} 6... Bd6 {[%clk
0:10:03.8]} 7. Bd3 {[%clk 0:10:06]} 7... O-O {[%clk 0:10:04.3]} 8. O-O {[%clk
0:10:07.2]} 8... Bg4 {[%clk 0:10:05.2]} 9. h3 {[%clk 0:10:05.7]} 9... Bh5 {[%clk
0:10:05.5]} 10. c3 {[%clk 0:10:06.3]} 10... Re8 {[%clk 0:09:41.6]} 11. g4 {[%clk
0:09:11.3]} 11... Bg6 {[%clk 0:09:41.1]} 12. Nh4 {[%clk 0:09:12.1]} 12... Bxd3
{[%clk 0:09:23.1]} 13. Qxd3 {[%clk 0:09:12.8]} 13... g6 {[%clk 0:09:24.3]} 14.
Be3 {[%clk 0:09:04.5]} 14... Nd7 {[%clk 0:09:20.3]} 15. Nf3 {[%clk 0:08:52.7]}
15... Nc5 {[%clk 0:09:08.1]} 16. Qc2 {[%clk 0:08:37.3]} 16... Ne6 {[%clk
0:08:53.3]} 17. Rae1 {[%clk 0:08:37.3]} 17... Bc7 {[%clk 0:08:41.5]} 18. Kg2
{[%clk 0:08:06.2]} 18... Qd6 {[%clk 0:07:41.7]} 19. Rh1 {[%clk 0:07:44]} 19...
b5 {[%clk 0:07:35]} 20. c4 {[%clk 0:07:42.6]} 20... bxc4 {[%clk 0:07:02.3]} 21.
Qxc4 {[%clk 0:07:42.2]} 21... Rac8 {[%clk 0:06:58.2]} 22. Rd1 {[%clk 0:07:37.8]}
22... Bb6 {[%clk 0:06:51]} 23. Rd2 {[%clk 0:07:11.8]} 23... Nc7 {[%clk 0:06:46]}
24. a3 {[%clk 0:06:17.5]} 24... Nd5 {[%clk 0:06:43.7]} 25. Rd3 {[%clk
0:06:18.3]} 25... Re6 {[%clk 0:06:33.6]} 26. Qc1 {[%clk 0:05:26.4]} 26... Rce8
{[%clk 0:06:28.1]} 27. Qd2 {[%clk 0:05:22.5]} 27... Re4 {[%clk 0:06:07.4]} 28.
Rc1 {[%clk 0:05:18.5]} 28... Qe6 {[%clk 0:05:48.7]} 29. Nh2 {[%clk 0:04:43.8]}
29... Nxe3+ {[%clk 0:04:29.4]} 30. fxe3 {[%clk 0:04:42.7]} 30... Rxe3 {[%clk
0:04:22.6]} 31. Rxe3 {[%clk 0:04:43.1]} 31... Qxe3 {[%clk 0:04:23.8]} 32. Qxe3
{[%clk 0:04:44.8]} 32... Rxe3 {[%clk 0:04:25.4]} 33. Nf3 {[%clk 0:04:29.1]}
33... Re2+ {[%clk 0:04:16]} 34. Kf1 {[%clk 0:04:29.4]} 34... Rxb2 {[%clk
0:04:15.2]} 35. Rxc6 {[%clk 0:04:30.3]} 35... Kg7 {[%clk 0:04:07.7]} 36. Rc3
{[%clk 0:04:26.6]} 36... Kf8 {[%clk 0:03:53.5]} 37. Re3 {[%clk 0:04:10.9]} 37...
Ra2 {[%clk 0:03:18.3]} 38. Ke1 {[%clk 0:03:25.9]} 38... Bc7 {[%clk 0:03:14.3]}
39. d5 {[%clk 0:01:53.4]} 39... Bd6 {[%clk 0:03:08]} 40. Rc3 {[%clk 0:01:54.5]}
40... Rxa3 {[%clk 0:02:21]} 41. Rc8+ {[%clk 0:01:53.7]} 41... Kg7 {[%clk
0:02:15.3]} 42. Ke2 {[%clk 0:01:53.9]} 42... Ra5 {[%clk 0:02:08.9]} 43. Ra8
{[%clk 0:01:52.1]} 43... Ra2+ {[%clk 0:01:58.2]} 44. Kd3 {[%clk 0:01:49.4]}
44... Ra3+ {[%clk 0:01:59.3]} 45. Ke2 {[%clk 0:01:50.3]} 45... Bc5 {[%clk
0:01:59.7]} 46. Re8 {[%clk 0:01:26]} 46... a5 {[%clk 0:01:42.6]} 47. h4 {[%clk
0:01:26.8]} 47... a4 {[%clk 0:01:40]} 48. g5 {[%clk 0:01:27.1]} 48... Rb3 {[%clk
0:01:22.7]} 49. gxf6+ {[%clk 0:01:22.6]} 49... Kxf6 {[%clk 0:01:23.3]} 50. Ng5
{[%clk 0:01:23.9]} 50... Bb6 {[%clk 0:01:01.4]} 51. Ra8 {[%clk 0:00:47.2]} 51...
a3 {[%clk 0:00:58.1]} 52. d6 {[%clk 0:00:48.2]} 52... h6 {[%clk 0:00:48.8]} 53.
Ne4+ {[%clk 0:00:46.2]} 53... Ke5 {[%clk 0:00:45.3]} 54. Nd2 {[%clk 0:00:47.3]}
54... Re3+ {[%clk 0:00:40.3]} 55. Kd1 {[%clk 0:00:48.6]} 55... Rc3 {[%clk
0:00:24.4]} 56. d7 {[%clk 0:00:48.1]} 56... Rd3 {[%clk 0:00:15.7]} 57. Ke2
{[%clk 0:00:49.4]} 57... Rxd7 {[%clk 0:00:07.3]} 58. Nc4+ {[%clk 0:00:50.3]}
58... Kf4 {[%clk 0:00:08.7]} 59. Nxb6 {[%clk 0:00:51.8]} 59... Rb7 {[%clk
0:00:10.1]} 60. Nd5+ {[%clk 0:00:51.3]} 60... Ke5 {[%clk 0:00:05.4]} 61. Ne3
{[%clk 0:00:51.1]} 61... Rb2+ {[%clk 0:00:04.7]} 62. Kf3 {[%clk 0:00:52.4]}
62... Rb3 {[%clk 0:00:05.9]} 63. Ra5+ {[%clk 0:00:51.7]} 63... Kd4 {[%clk
0:00:05.1]} 64. Ra4+ {[%clk 0:00:51.8]} 64... Kd3 {[%clk 0:00:06.5]} 65. Kf4
{[%clk 0:00:52]} 65... g5+ {[%clk 0:00:07]} 66. hxg5 {[%clk 0:00:52.3]} 66...
hxg5+ {[%clk 0:00:08.9]} 67. Kf3 {[%clk 0:00:52.9]} 67... Kd2 {[%clk 0:00:10.2]}
68. Rd4+ {[%clk 0:00:53.2]} 68... Rd3 {[%clk 0:00:11.2]} 69. Rxd3+ {[%clk
0:00:36.1]} 69... Kxd3 {[%clk 0:00:13.1]} 70. Nd5 {[%clk 0:00:36.9]} 70... f5
{[%clk 0:00:13.5]} 71. Kf2 {[%clk 0:00:35]} 71... Kc4 {[%clk 0:00:12.2]} 72.
Ne3+ {[%clk 0:00:35.7]} 72... Kb3 {[%clk 0:00:13]} 73. Nxf5 {[%clk 0:00:35.5]}
73... a2 {[%clk 0:00:14]} 74. Nd4+ {[%clk 0:00:37.1]} 74... Kb2 {[%clk
0:00:14.9]} 0-1

[Event "GrandPrix_29.05"]
[Site "Chess.com"]
[Date "2020.05.29"]
[Round "2"]
[White "Kostya_Nikologorskiy"]
[Black "Magicmaster17"]
[Result "1/2-1/2"]
[WhiteElo "2257"]
[BlackElo "2128"]
[TimeControl "600+2"]
[EndTime "9:58:43 PDT"]
[Termination "Game drawn by agreement"]

1. d4 {[%clk 0:10:01.9]} 1... Nf6 {[%clk 0:10:00.5]} 2. Bf4 {[%clk 0:10:02.1]}
2... g6 {[%clk 0:09:57.3]} 3. Nc3 {[%clk 0:10:02.5]} 3... d5 {[%clk 0:09:54.4]}
4. Qd2 {[%clk 0:10:00.2]} 4... Bg7 {[%clk 0:09:55]} 5. Bh6 {[%clk 0:09:56]} 5...
O-O {[%clk 0:09:53.4]} 6. Bxg7 {[%clk 0:09:42.8]} 6... Kxg7 {[%clk 0:09:53.2]}
7. O-O-O {[%clk 0:09:43.8]} 7... Nc6 {[%clk 0:08:36.1]} 8. h4 {[%clk 0:09:15.7]}
8... h5 {[%clk 0:08:16.9]} 9. f3 {[%clk 0:09:06.6]} 9... e5 {[%clk 0:08:11.3]}
10. dxe5 {[%clk 0:08:58.4]} 10... Nxe5 {[%clk 0:08:12.1]} 11. Nxd5 {[%clk
0:08:58.4]} 11... Qxd5 {[%clk 0:08:03.6]} 12. Qxd5 {[%clk 0:09:00.3]} 12... Nxd5
{[%clk 0:08:04.9]} 13. Rxd5 {[%clk 0:09:00.2]} 13... Nc4 {[%clk 0:08:06.1]} 14.
Rd3 {[%clk 0:08:40.4]} 14... Ne5 {[%clk 0:06:43.3]} 15. Rd1 {[%clk 0:07:49.5]}
15... Re8 {[%clk 0:06:25.5]} 16. e4 {[%clk 0:07:36.9]} 16... f5 {[%clk
0:06:25.8]} 17. exf5 {[%clk 0:07:23.9]} 17... Bxf5 {[%clk 0:06:25.1]} 18. Ne2
{[%clk 0:07:18.7]} 18... Nc4 {[%clk 0:04:43.2]} 19. Nd4 {[%clk 0:07:14.8]} 19...
Ne3 {[%clk 0:04:44.3]} 20. Nxf5+ {[%clk 0:07:14.5]} 20... gxf5 {[%clk
0:04:46.2]} 21. Rd7+ {[%clk 0:07:15.1]} 21... Kf6 {[%clk 0:04:47.2]} 22. Rxc7
{[%clk 0:07:05.4]} 22... Rac8 {[%clk 0:04:45.5]} 23. Rxc8 {[%clk 0:06:59.7]}
23... Rxc8 {[%clk 0:04:46.5]} 24. Kd2 {[%clk 0:05:51.4]} 24... f4 {[%clk
0:04:26.6]} 25. c3 {[%clk 0:04:09.3]} 25... Rd8+ {[%clk 0:04:05.2]} 26. Bd3
{[%clk 0:04:00.5]} 26... Nxg2 {[%clk 0:03:28.2]} 27. Ke2 {[%clk 0:03:57.8]}
27... b6 {[%clk 0:01:36.9]} 28. Be4 {[%clk 0:03:42.5]} 28... Rd7 {[%clk
0:01:37.9]} 29. a4 {[%clk 0:03:41.8]} 29... Rg7 {[%clk 0:01:10.6]} 30. a5 {[%clk
0:02:49.7]} 30... Ne3 {[%clk 0:01:04.1]} 31. b3 {[%clk 0:02:40.6]} 31... Ke5
{[%clk 0:00:39.9]} 32. axb6 {[%clk 0:02:14.2]} 32... axb6 {[%clk 0:00:41.8]} 33.
Ra1 {[%clk 0:02:15.3]} 33... Rc7 {[%clk 0:00:21.2]} 34. Kd2 {[%clk 0:01:20.5]}
34... Rd7+ {[%clk 0:00:21.8]} 35. Bd3 {[%clk 0:01:21.8]} 35... Rg7 {[%clk
0:00:20.2]} 36. Ra6 {[%clk 0:01:04.1]} 36... Rg2+ {[%clk 0:00:19.6]} 37. Be2
{[%clk 0:01:05.5]} 37... Nf1+ {[%clk 0:00:19.9]} 38. Kd3 {[%clk 0:01:05.8]}
38... Ng3 {[%clk 0:00:21.2]} 39. Bd1 {[%clk 0:01:04.6]} 39... Nf1 {[%clk
0:00:20]} 40. Be2 {[%clk 0:01:00.5]} 40... Ng3 {[%clk 0:00:20.8]} 41. Ra8 {[%clk
0:00:48.7]} 41... Nxe2 {[%clk 0:00:15.4]} 42. Re8+ {[%clk 0:00:49.5]} 42... Kf5
{[%clk 0:00:16.6]} 43. Rxe2 {[%clk 0:00:50.9]} 43... Rg3 {[%clk 0:00:17.7]} 44.
Rf2 {[%clk 0:00:46.1]} 44... Rh3 {[%clk 0:00:18.9]} 45. c4 {[%clk 0:00:38.5]}
45... Rxh4 {[%clk 0:00:20.3]} 46. b4 {[%clk 0:00:39.7]} 46... Rh1 {[%clk
0:00:22]} 47. c5 {[%clk 0:00:40.1]} 47... bxc5 {[%clk 0:00:22.9]} 48. bxc5
{[%clk 0:00:42]} 48... Ke5 {[%clk 0:00:18.4]} 49. Kc4 {[%clk 0:00:39.6]} 49...
h4 {[%clk 0:00:18.3]} 50. Re2+ {[%clk 0:00:37.6]} 50... Kf6 {[%clk 0:00:18.2]}
51. c6 {[%clk 0:00:38.4]} 51... h3 {[%clk 0:00:19]} 52. Rc2 {[%clk 0:00:32.5]}
52... Ke7 {[%clk 0:00:19.6]} 53. Kc5 {[%clk 0:00:32.1]} 53... Kd8 {[%clk
0:00:20.3]} 54. Rd2+ {[%clk 0:00:23.3]} 54... Kc8 {[%clk 0:00:21.3]} 55. Re2
{[%clk 0:00:16.1]} 55... Rf1 {[%clk 0:00:20]} 56. Kd6 {[%clk 0:00:14.5]} 56...
Rd1+ {[%clk 0:00:20.6]} 57. Ke5 {[%clk 0:00:13.3]} 57... Rg1 {[%clk 0:00:11.8]}
58. Rh2 {[%clk 0:00:06.9]} 58... Kc7 {[%clk 0:00:06.3]} 59. Rxh3 {[%clk
0:00:07.8]} 59... Kxc6 {[%clk 0:00:07.9]} 60. Rh6+ {[%clk 0:00:05.9]} 60... Kd7
{[%clk 0:00:08.5]} 61. Rh7+ {[%clk 0:00:06.8]} 61... Ke8 {[%clk 0:00:09.3]} 62.
Kxf4 {[%clk 0:00:08]} 62... Ra1 {[%clk 0:00:09.2]} 63. Kg4 {[%clk 0:00:07]}
63... Kf8 {[%clk 0:00:10]} 64. f4 {[%clk 0:00:08]} 64... Ra5 {[%clk 0:00:11.6]}
65. f5 {[%clk 0:00:09]} 65... Ra6 {[%clk 0:00:11]} 66. Kg5 {[%clk 0:00:10.2]}
66... Rb6 {[%clk 0:00:12]} 1/2-1/2